bitfinex/quotes_ETHUSD_20250905
["timestamp","ask_amount","ask_price","bid_price","bid_amount"]
[1757068543353,10.63292746,4425.9,4425.8,1e-08]
[1757068543508,9.83992746,4425.9,4425.8,1e-08]
[1757068545864,5.54892746,4425.9,4425.8,1e-08]
[1757068546073,9.39892746,4425.9,4425.8,1e-08]
[1757068548042,6.10942746,4425.9,4425.8,1e-08]
[1757068548242,9.10942746,4425.9,4425.8,0.75920001]
[1757068548468,2.25942746,4425.9,4425.8,0.75920001]
[1757068548770,6.10842746,4425.9,4425.8,0.75920001]
[1757068549143,2.25942746,4425.9,4425.8,0.75920001]
[1757068549347,6.10942746,4425.9,4425.8,0.75920001]
[1757068549745,9.10942746,4425.9,4425.8,0.75920001]
[1757068550671,5.25942746,4425.9,4425.8,1.18690001]
[1757068550968,9.10842746,4425.9,4425.8,1.18690001]
[1757068554987,9.11042746,4425.9,4425.8,1.18690001]
[1757068555388,9.11042746,4425.9,4425.8,0.75920001]
[1757068555688,9.40542746,4425.9,4425.8,1e-08]
[1757068555886,9.11042746,4425.9,4425.8,0.75920001]
[1757068556454,9.11042746,4425.9,4425.8,1.18690001]
[1757068556984,9.11042746,4425.9,4425.8,0.75920001]
[1757068557575,9.11042746,4425.9,4425.8,1.18690001]
[1757068558086,9.10342746,4425.9,4425.8,1.18690001]
[1757068558256,9.10342746,4425.9,4425.8,1e-08]
[1757068558450,9.39842746,4425.9,4425.8,1e-08]
[1757068558656,9.84142746,4425.9,4425.8,1e-08]
[1757068562258,5.55642746,4425.9,4425.8,1e-08]
[1757068562459,9.39842746,4425.9,4425.8,1e-08]
[1757068564385,9.84142746,4425.9,4425.8,1e-08]
[1757068567097,9.39842746,4425.9,4425.8,1e-08]
[1757068567900,9.39762746,4425.9,4425.8,1e-08]
[1757068570793,9.85742746,4425.9,4425.8,1e-08]
[1757068570999,6.01542746,4425.9,4425.8,1e-08]
[1757068571298,9.84942746,4425.9,4425.8,1e-08]
[1757068571703,5.55562746,4425.9,4425.8,1e-08]
[1757068572005,9.38862746,4425.9,4425.8,1e-08]
[1757068572394,9.09362746,4425.9,4425.8,0.45280001]
[1757068572588,9.09262746,4425.9,4425.8,1.18590001]
[1757068572996,9.09262746,4425.9,4425.8,0.75780001]
[1757068574001,9.40912746,4425.9,4425.8,0.45280001]
[1757068574211,9.40912746,4425.9,4425.8,1e-08]
[1757068574709,9.86892746,4425.9,4425.8,1e-08]
[1757068579427,14.15084235,4425.9,4425.8,1e-08]
[1757068580622,13.69104235,4425.9,4425.8,1e-08]
[1757068581599,14.15084235,4425.9,4425.8,1e-08]
[1757068584430,14.14484235,4425.9,4425.8,1e-08]
[1757068586836,13.68504235,4425.9,4425.8,1e-08]
[1757068587338,9.40312746,4425.9,4425.8,1e-08]
[1757068587515,14.14484235,4425.9,4425.8,1e-08]
[1757068588313,9.54254235,4425.9,4425.8,0.30500001]
[1757068588621,9.08262746,4425.9,4425.8,1.18590001]
[1757068590846,5.26062746,4425.9,4425.8,1.18590001]
[1757068591004,9.08262746,4425.9,4425.8,1.18590001]
[1757068592231,9.08262746,4425.9,4425.8,1.39563027]
[1757068593659,9.08262746,4425.9,4425.8,0.75780001]
[1757068595259,9.08262746,4425.9,4425.8,0.45280001]
[1757068595465,9.85892746,4425.9,4425.8,1e-08]
[1757068596268,9.85812746,4425.9,4425.8,1e-08]
[1757068601060,14.14004235,4425.9,4425.8,1e-08]
[1757068603067,14.93204235,4425.9,4425.8,1e-08]
[1757068603841,14.93404235,4425.9,4425.8,1e-08]
[1757068604041,14.93204235,4425.9,4425.8,1e-08]
[1757068609774,0.792,4424.9,4424.8,1e-08]
[1757068609952,2.26024867,4424.3,4423.4,0.4591]
[1757068610149,6.85706381,4423.9,4423.4,0.4591]
[1757068610472,15.04136381,4423.9,4423.8,0.4841]
[1757068610672,15.04136381,4423.9,4423.8,0.7966]
[1757068610979,15.04136381,4423.9,4423.8,0.3375]
[1757068613868,10.75844892,4423.9,4423.8,1.2932]
[1757068614689,10.75744892,4423.9,4423.8,1.2932]
[1757068617177,6.83,4423.9,4423.8,1.2932]
[1757068617382,3.83,4423.9,4423.8,1.2932]
[1757068618862,2.94010293,4424.0,4423.8,1.2932]
[1757068619065,3.829,4423.9,4423.8,1.2932]
[1757068619274,3.829,4423.9,4423.8,0.3375]
[1757068619675,3.829,4423.9,4423.8,1.2932]
[1757068621086,6.08944892,4423.9,4423.8,1.2932]
[1757068621395,3.829,4423.9,4423.8,1.2932]
[1757068621900,6.08944892,4423.9,4423.8,1.2932]
[1757068622085,3.829,4423.9,4423.8,1.2932]
[1757068622662,0.67969644,4424.0,4423.8,1.2932]
[1757068622897,4.50569644,4424.0,4423.9,0.9557]
[1757068623406,4.50569644,4424.0,4423.9,1.2682]
[1757068623570,4.50489644,4424.0,4423.9,1.2682]
[1757068625186,4.50489644,4424.0,4423.9,1.47751743]
[1757068626591,0.67889644,4424.0,4423.9,1.47751743]
[1757068626795,4.50289644,4424.0,4423.9,1.47751743]
[1757068627284,6.76329427,4424.0,4423.9,1.01841743]
[1757068627612,4.50289644,4424.0,4423.9,1.01848395]
[1757068628173,4.50289644,4424.0,4423.9,0.3125]
[1757068628507,4.50289644,4424.0,4423.9,0.52192795]
[1757068628709,6.76329427,4424.0,4423.9,0.52192795]
[1757068629010,10.53439427,4424.0,4423.9,0.20942795]
[1757068629310,2.37324892,4423.9,4423.8,0.026]
[1757068629810,2.66054892,4423.9,4423.8,0.026]
[1757068632978,0.1128,4423.9,4423.8,1.2742]
[1757068633183,3.9338,4423.9,4423.8,1.48378891]
[1757068634306,0.1128,4423.9,4423.8,1.48378891]
[1757068634489,3.9338,4423.9,4423.8,1.48378891]
[1757068636313,3.9338,4423.9,4423.8,0.23558891]
[1757068636623,3.9338,4423.9,4423.8,0.54778891]
[1757068637218,3.9338,4423.9,4423.8,1.02958891]
[1757068638436,3.9338,4423.9,4423.8,0.54778891]
[1757068639440,3.9338,4423.9,4423.8,0.23558891]
[1757068639601,3.9338,4423.9,4423.8,0.54778891]
[1757068640635,3.9338,4423.9,4423.8,1.02958891]
[1757068641738,3.818,4423.9,4423.8,1.02958891]
[1757068641967,3.818,4423.9,4423.8,1.48378891]
[1757068642114,0.68089644,4424.0,4423.8,1.48394759]
[1757068642310,3.9298,4423.9,4423.8,2.59865003]
[1757068642513,3.9298,4423.9,4423.8,2.80847519]
[1757068642723,3.9298,4423.9,4423.8,0.54802516]
[1757068642924,3.9298,4423.9,4423.8,1.48402516]
[1757068643412,0.1128,4423.9,4423.8,3.74452518]
[1757068643812,0.1128,4423.9,4423.8,1.48402516]
[1757068644408,0.1128,4423.9,4423.8,4.34504372]
[1757068646418,0.1128,4423.9,4423.8,3.74452518]
[1757068647645,0.1128,4423.9,4423.8,1.48402516]
[1757068647851,0.1128,4423.9,4423.8,1.02982516]
[1757068649050,0.1128,4423.9,4423.8,3.29032518]
[1757068649349,0.1128,4423.9,4423.8,3.29015235]
[1757068649723,0.1128,4423.9,4423.8,1.02965233]
[1757068651049,0.4001,4423.9,4423.8,0.23565233]
[1757068651421,0.3993,4423.9,4423.8,0.23565233]
[1757068652039,6.92714892,4423.9,4423.8,0.23565233]
[1757068654116,7.38894892,4423.9,4423.8,0.23565233]
[1757068654333,10.38894892,4423.9,4423.8,0.026]
[1757068655236,10.38894892,4423.9,4423.3,0.001]
[1757068655237,6.05250002,4423.8,4423.3,0.001]
[1757068655466,2.26065332,4423.5,4423.3,0.001]
[1757068655654,11.03800443,4423.4,4423.3,0.001]
[1757068655949,11.95620443,4423.4,4423.3,0.001]
[1757068656353,0.792,4423.2,4421.9,0.20974708]
[1757068656556,2.26147131,4421.9,4421.8,0.025]
[1757068656736,6.08547131,4421.9,4421.8,0.23479083]
[1757068656930,6.82917131,4421.9,4421.8,0.23479083]
[1757068657130,6.82917131,4421.9,4421.8,0.025]
[1757068657453,6.37277131,4421.9,4421.8,0.025]
[1757068657961,6.08547131,4421.9,4421.8,0.025]
[1757068658457,6.82917131,4421.9,4421.8,0.025]
[1757068661253,6.82917131,4421.9,4421.8,0.026]
[1757068661832,9.82917131,4421.9,4421.8,0.026]
[1757068662279,10.31857131,4421.9,4421.8,0.026]
[1757068663774,9.82917131,4421.9,4421.8,0.026]
[1757068664371,9.75397131,4421.9,4421.8,0.026]
[1757068664967,9.29757131,4421.9,4421.8,0.026]
[1757068665265,9.01027131,4421.9,4421.8,0.026]
[1757068665785,5.50077131,4421.9,4421.8,0.026]
[1757068665936,9.00727131,4421.9,4421.8,0.026]
[1757068666139,5.18627131,4421.9,4421.8,0.026]
[1757068666366,9.00627131,4421.9,4421.8,0.026]
[1757068667099,3.0,4421.9,4421.8,0.7769]
[1757068667240,3.819,4421.9,4421.8,1.2282]
[1757068667442,1.666,4422.2,4421.8,1.2282]
[1757068667674,0.6798551,4422.0,4421.9,0.9118]
[1757068667877,3.0,4422.0,4421.9,0.9118]
[1757068668076,3.0,4422.0,4421.9,1.2022]
[1757068668767,5.26142017,4422.0,4421.9,1.2022]
[1757068669368,5.26142017,4422.0,4421.9,0.7509]
[1757068669678,5.26142017,4422.0,4421.9,0.2904]
[1757068669873,0.1128,4421.9,4421.8,0.026]
[1757068670169,6.19327131,4421.9,4421.8,0.026]
[1757068670488,6.50777131,4421.9,4421.8,0.026]
[1757068672979,6.96117131,4421.9,4421.8,0.026]
[1757068673852,3.9318,4421.9,4421.8,1.2282]
[1757068674052,6.19327131,4421.9,4421.8,1.2282]
[1757068674267,6.19327131,4421.9,4421.8,0.7769]
[1757068674674,6.50777131,4421.9,4421.8,0.026]
[1757068674874,6.96117131,4421.9,4421.8,0.026]
[1757068679202,6.96037131,4421.9,4421.8,0.026]
[1757068680082,6.50697131,4421.9,4421.8,0.026]
[1757068680268,6.96037131,4421.9,4421.8,0.026]
[1757068680598,6.96237131,4421.9,4421.8,0.026]
[1757068681106,9.96237131,4421.9,4421.8,0.026]
[1757068682475,9.50897131,4421.9,4421.8,0.026]
[1757068683703,5.68997131,4421.9,4421.8,0.026]
[1757068683996,9.18647131,4421.9,4421.8,0.7769]
[1757068684504,3.002,4421.9,4421.8,0.7769]
[1757068684706,9.07447131,4421.9,4421.8,0.3164]
[1757068684998,9.07447131,4421.9,4421.8,0.7769]
[1757068685708,9.07447131,4421.9,4421.8,0.026]
[1757068685895,9.07447131,4421.9,4421.8,0.3164]
[1757068686702,9.38897131,4421.9,4421.8,0.026]
[1757068688334,9.07447131,4421.9,4421.8,0.3164]
[1757068688620,9.07547131,4421.9,4421.8,0.7769]
[1757068688785,5.26347131,4421.9,4421.8,0.7769]
[1757068688982,9.07547131,4421.9,4421.8,1.2396]
[1757068689186,6.814,4421.9,4421.8,1.2396]
[1757068689398,9.07647131,4421.9,4421.8,1.2396]
[1757068690087,0.002,4421.9,4421.8,1.44985432]
[1757068690290,3.814,4421.9,4421.8,1.44985432]
[1757068691118,6.07547131,4421.9,4421.8,1.44985432]
[1757068691494,3.814,4421.9,4421.8,1.44985432]
[1757068693037,6.07547131,4421.9,4421.8,1.44985432]
[1757068693523,6.07547131,4421.9,4421.8,0.98715432]
[1757068694019,2.26347131,4421.9,4421.8,0.98715432]
[1757068694197,6.07347131,4421.9,4421.8,0.98715432]
[1757068695122,6.07347131,4421.9,4421.8,0.23625432]
[1757068695730,6.07347131,4421.9,4421.8,0.52765432]
[1757068695909,6.36557131,4421.9,4421.8,0.23625432]
[1757068696111,6.82417131,4421.9,4421.8,0.23625432]
[1757068697109,6.82417131,4421.9,4421.3,0.001]
[1757068697110,2.26152245,4421.8,4421.3,0.001]
[1757068697310,2.26172705,4421.4,4421.3,0.001]
[1757068697515,11.04082705,4421.4,4421.3,0.001]
[1757068697729,7.22082705,4421.4,4421.3,0.001]
[1757068697935,11.04182705,4421.4,4421.3,0.001]
[1757068698343,11.15500951,4421.4,4421.3,0.001]
[1757068698540,7.33400951,4421.4,4421.3,0.001]
[1757068698746,11.61260951,4421.4,4421.3,0.001]
[1757068699246,12.10460951,4421.4,4421.3,0.001]
[1757068699905,11.04082705,4421.4,4421.3,0.001]
[1757068700101,11.61162017,4421.4,4421.3,0.001]
[1757068700339,12.10362017,4421.4,4421.3,0.001]
[1757068703310,11.61162017,4421.4,4421.3,0.001]
[1757068707116,11.61082017,4421.4,4421.3,0.001]
[1757068707413,12.10282017,4421.4,4421.3,0.001]
[1757068709019,11.61082017,4421.4,4421.3,0.001]
[1757068716874,11.15222017,4421.4,4421.3,0.001]
[1757068717077,11.61082017,4421.4,4421.3,0.001]
[1757068719088,7.79082017,4421.4,4421.3,0.001]
[1757068719400,11.59982017,4421.4,4421.3,0.001]
[1757068719596,11.58642017,4421.4,4421.3,0.001]
[1757068720774,10.84912017,4421.4,4421.3,0.001]
[1757068720975,10.84912017,4421.4,4421.3,0.7659]
[1757068721172,10.84812017,4421.4,4421.3,0.7659]
[1757068721479,10.84812017,4421.4,4421.3,1.1977]
[1757068722012,10.84812017,4421.4,4421.3,0.7659]
[1757068722400,10.84812017,4421.4,4421.3,1.1977]
[1757068722598,10.84812017,4421.4,4421.3,0.7659]
[1757068722599,6.92792705,4421.4,4421.3,0.7659]
[1757068722815,6.92792705,4421.4,4421.3,1.1977]
[1757068722816,7.73592705,4421.4,4421.3,1.1977]
[1757068723319,10.73592705,4421.4,4421.3,1.1977]
[1757068726208,10.73492705,4421.4,4421.3,1.1977]
[1757068730848,10.73492705,4421.4,4421.3,0.7659]
[1757068731148,10.73492705,4421.4,4421.3,0.3056]
[1757068732273,11.04752705,4421.4,4421.3,0.001]
[1757068732575,11.49272705,4421.4,4421.3,0.001]
[1757068732866,11.04752705,4421.4,4421.3,0.001]
[1757068733668,11.49272705,4421.4,4421.3,0.001]
[1757068734723,15.78269411,4421.4,4421.3,0.001]
[1757068734957,16.24319411,4421.4,4421.3,0.001]
[1757068735155,11.49392705,4421.4,4421.3,0.001]
[1757068736531,16.24519411,4421.4,4421.3,0.001]
[1757068740177,17.03719411,4421.4,4421.3,0.001]
[1757068741157,16.57589411,4421.4,4421.3,0.001]
[1757068741559,12.28592705,4421.4,4421.3,0.001]
[1757068741886,16.57589411,4421.4,4421.3,0.001]
[1757068744607,12.76889411,4421.4,4421.3,0.001]
[1757068744807,10.73612705,4421.4,4421.3,0.3056]
[1757068745108,10.73612705,4421.4,4421.3,0.001]
[1757068745313,11.04872705,4421.4,4421.3,0.001]
[1757068746703,11.49392705,4421.4,4421.3,0.001]
[1757068746905,12.74722705,4421.4,4421.3,0.001]
[1757068747309,12.28592705,4421.4,4421.3,0.001]
[1757068751675,12.77642705,4421.4,4421.3,0.001]
[1757068751981,12.28592705,4421.4,4421.3,0.001]
[1757068752194,12.77642705,4421.4,4421.3,0.001]
[1757068752572,12.79802705,4421.4,4421.3,0.001]
[1757068753902,2.26198285,4420.9,4420.4,0.001]
[1757068754085,9.55215459,4420.5,4420.4,0.001]
[1757068754280,15.33945459,4420.5,4420.4,0.001]
[1757068754675,15.49685459,4420.5,4420.4,0.001]
[1757068754881,15.81015459,4420.5,4420.4,0.001]
[1757068756194,16.60215459,4420.5,4420.4,0.001]
[1757068758016,16.77276966,4420.5,4420.4,0.001]
[1757068758332,17.23956966,4420.5,4420.4,0.001]
[1757068759090,17.06895459,4420.5,4420.4,0.001]
[1757068759620,12.77898753,4420.5,4420.4,0.001]
[1757068759982,12.31218753,4420.5,4420.4,0.001]
[1757068760186,12.77898753,4420.5,4420.4,0.001]
[1757068762618,12.31218753,4420.5,4420.4,0.001]
[1757068762817,12.31138753,4420.5,4420.4,0.001]
[1757068763533,8.19108753,4420.5,4420.4,0.001]
[1757068763828,11.99808753,4420.5,4420.4,0.7798]
[1757068764391,11.99808753,4420.5,4420.4,1.2104]
[1757068765136,11.99808753,4420.5,4420.4,0.001]
[1757068765137,12.77818753,4420.5,4420.4,0.001]
[1757068765631,12.31138753,4420.5,4420.4,0.001]
[1757068766139,8.81003121,4420.5,4420.4,0.001]
[1757068766336,11.99808753,4420.5,4420.4,0.001]
[1757068766821,12.31138753,4420.5,4420.4,0.001]
[1757068769238,12.77818753,4420.5,4420.4,0.001]
[1757068769819,13.26868753,4420.5,4420.4,0.001]
[1757068770609,3.05449462,4419.9,4419.8,1e-08]
[1757068770808,9.86149462,4419.9,4419.8,1e-08]
[1757068771043,10.64159462,4419.9,4419.8,1e-08]
[1757068771217,10.17479462,4419.9,4419.8,1e-08]
[1757068771421,10.64159462,4419.9,4419.8,1e-08]
[1757068773161,3.0548018,4419.3,4419.2,1e-08]
[1757068773344,16.75643059,4419.3,4419.2,1e-08]
[1757068773657,16.75643059,4419.3,4419.2,0.30810001]
[1757068773658,11.5298018,4419.3,4419.2,0.30810001]
[1757068773959,11.5298018,4419.3,4419.2,0.77880001]
[1757068774323,12.21025829,4419.3,4419.2,1.20940001]
[1757068775458,8.40325829,4419.3,4419.2,1.20940001]
[1757068775781,11.41825829,4419.3,4419.2,1.20940001]
[1757068776863,7.61125829,4419.3,4419.2,1.20940001]
[1757068777076,11.41825829,4419.3,4419.2,1.20940001]
[1757068777275,7.61125829,4419.3,4419.2,1.20940001]
[1757068777482,11.41825829,4419.3,4419.2,0.77880001]
[1757068778993,11.41825829,4419.3,4419.2,1.20940001]
[1757068780080,11.41825829,4419.3,4419.2,1.21550001]
[1757068782761,7.61125829,4419.3,4419.2,1.21550001]
[1757068782968,11.41825829,4419.3,4419.2,1.21550001]
[1757068783901,8.41825829,4419.3,4419.2,1.21550001]
[1757068784095,11.41825829,4419.3,4419.2,1.21550001]
[1757068786500,11.41825829,4419.3,4419.2,0.77880001]
[1757068786702,11.41825829,4419.3,4419.2,0.30810001]
[1757068787387,11.41825829,4419.3,4419.2,1e-08]
[1757068788801,11.73045829,4419.3,4419.2,1e-08]
[1757068789516,11.41825829,4419.3,4419.2,1.20650001]
[1757068789725,7.61125829,4419.3,4419.2,1.20650001]
[1757068789890,11.41825829,4419.3,4419.2,1.20650001]
[1757068790596,11.41745829,4419.3,4419.2,1.20650001]
[1757068792304,11.41945829,4419.3,4419.2,1.20650001]
[1757068793425,7.61245829,4419.3,4419.2,1.20650001]
[1757068793721,11.41845829,4419.3,4419.2,1.20650001]
[1757068795198,11.41845829,4419.3,4419.2,0.76980001]
[1757068796909,11.41845829,4419.3,4419.2,1.20650001]
[1757068798300,11.41845829,4419.3,4419.2,0.76980001]
[1757068800237,11.41845829,4419.3,4419.2,1.20650001]
[1757068801699,11.41845829,4419.3,4419.2,0.76980001]
[1757068802521,11.73065829,4419.3,4419.2,1e-08]
[1757068803711,12.17825829,4419.3,4419.2,1e-08]
[1757068804826,7.61245829,4419.3,4419.2,0.31090001]
[1757068805050,5.35045649,4419.3,4419.2,1.20650001]
[1757068805203,5.476,4419.3,4419.2,1.32725001]
[1757068805808,5.5888,4419.3,4419.2,1.32725001]
[1757068807828,3.9208,4419.3,4419.2,1.32725001]
[1757068810559,4.60105128,4419.3,4419.2,1.32725001]
[1757068810928,6.86385308,4419.3,4419.2,1.32725001]
[1757068811468,6.86385308,4419.3,4419.2,0.76980001]
[1757068812353,7.17395308,4419.3,4419.2,1e-08]
[1757068813220,7.17395308,4419.3,4419.2,0.73600001]
[1757068813221,0.79505128,4419.3,4419.2,0.73600001]
[1757068813426,3.9198,4419.3,4419.2,1.17290001]
[1757068813948,6.1826018,4419.3,4419.2,1.17290001]
[1757068814252,6.1826018,4419.3,4419.2,1e-08]
[1757068814455,6.4927018,4419.3,4419.2,1e-08]
[1757068814617,6.86291941,4419.3,4419.2,1e-08]
[1757068814934,6.86291941,4419.3,4419.2,0.73600001]
[1757068816148,3.05791941,4419.3,4419.2,0.73600001]
[1757068816346,4.60011761,4419.3,4419.2,1.17290001]
[1757068816517,6.86291941,4419.3,4419.2,1.17290001]
[1757068817124,4.60011761,4419.3,4419.2,1.17290001]
[1757068818461,4.59931761,4419.3,4419.2,1.5188436]
[1757068819358,4.59931761,4419.3,4419.2,1.17290001]
[1757068820058,6.86211941,4419.3,4419.2,1.17290001]
[1757068820355,4.59931761,4419.3,4419.2,1.17290001]
[1757068822758,0.79431761,4419.3,4419.2,1.17290001]
[1757068822933,0.114,4419.3,4419.2,1.17290001]
[1757068823135,0.114,4419.3,4419.2,1.9457714]
[1757068827643,0.114,4419.3,4419.2,1.5088714]
[1757068827838,0.114,4419.3,4419.2,0.28580001]
[1757068828245,0.4241,4419.3,4419.2,1e-08]
[1757068828563,0.8743,4419.3,4419.2,1e-08]
[1757068829144,0.5642,4419.3,4419.2,1e-08]
[1757068829469,0.5642,4419.3,4418.9,0.43767297]
[1757068829841,0.1128,4419.1,4418.9,0.43767297]
[1757068830058,2.37572939,4419.1,4418.8,0.026]
[1757068830368,0.1128,4419.1,4418.8,0.026]
[1757068830560,2.57310663,4418.9,4418.8,0.026]
[1757068830759,3.03440663,4418.9,4418.8,0.026]
[1757068830968,10.77997287,4418.9,4418.8,0.026]
[1757068833177,6.48810663,4418.9,4418.8,0.026]
[1757068835273,5.57310663,4418.9,4418.8,0.026]
[1757068835459,9.37710663,4418.9,4418.8,0.026]
[1757068835660,9.83840663,4418.9,4418.8,0.026]
[1757068836278,6.03440663,4418.9,4418.8,0.026]
[1757068836476,10.29210663,4418.9,4418.8,0.026]
[1757068841757,14.58397287,4418.9,4418.8,1e-08]
[1757068843878,15.37597287,4418.9,4418.8,1e-08]
[1757068846365,15.37517287,4418.9,4418.8,0.00400001]
[1757068849276,14.92147287,4418.9,4418.8,0.00400001]
[1757068850108,11.11747287,4418.9,4418.8,0.00400001]
[1757068850316,14.92147287,4418.9,4418.8,0.00400001]
[1757068850470,15.40937287,4418.9,4418.8,0.00400001]
[1757068850814,15.40937287,4418.9,4418.8,1e-08]
[1757068853003,15.40937287,4418.9,4418.5,0.001]
[1757068853004,0.792,4418.6,4418.0,0.001]
[1757068853300,9.55528264,4418.1,4418.0,0.001]
[1757068853508,15.32478264,4418.1,4418.0,0.001]
[1757068853802,15.75278264,4418.1,4418.0,0.001]
[1757068854187,15.84353116,4418.1,4418.0,0.001]
[1757068856080,15.41553116,4418.1,4418.0,0.001]
[1757068856592,11.61153116,4418.1,4418.0,0.001]
[1757068856901,15.41553116,4418.1,4418.0,0.001]
[1757068857906,10.82616492,4418.1,4418.0,0.001]
[1757068858078,10.82616492,4418.1,4418.0,0.3045]
[1757068858276,10.82616492,4418.1,4418.0,0.7955]
[1757068858988,10.82616492,4418.1,4418.0,0.001]
[1757068860383,10.82616492,4418.1,4418.0,0.7955]
[1757068860581,7.02216492,4418.1,4418.0,0.7955]
[1757068860780,10.82616492,4418.1,4418.0,1.2499]
[1757068860981,5.56274852,4418.1,4418.0,1.2499]
[1757068861294,5.56274852,4418.1,4418.0,1.37779]
[1757068862431,0.1128,4418.2,4418.0,5.66965624]
[1757068862626,0.1128,4418.2,4418.1,0.9454]
[1757068862927,0.1128,4418.7,4418.1,0.96803416]
[1757068863105,0.1128,4419.0,4418.7,4.29186624]
[1757068863309,0.1128,4419.0,4418.9,0.3035]
[1757068864038,0.1128,4419.0,4418.9,1.2489]
[1757068869531,0.1128,4419.0,4418.9,1.2489]
[1757068869940,2.37575541,4419.0,4418.9,0.7945]
[1757068870316,6.17775541,4419.0,4418.9,0.7945]
[1757068871432,6.17775541,4419.0,4418.9,1.2426]
[1757068871804,6.17775541,4419.0,4418.9,0.7945]
[1757068873522,6.85807611,4419.0,4418.9,0.7945]
[1757068873806,2.26316027,4418.6,4418.5,0.473]
[1757068874036,2.26324443,4418.5,4418.3,0.4481]
[1757068874207,2.26244443,4418.5,4418.4,0.4481]
[1757068874542,3.802,4418.6,4418.4,1.2373]
[1757068874830,0.4481,4418.5,4418.4,1.2373]
[1757068875015,4.2501,4418.5,4418.4,0.3162]
[1757068875526,4.2501,4418.5,4418.4,1.2373]
[1757068877109,0.4481,4418.5,4418.4,1.2373]
[1757068877310,4.2501,4418.5,4418.4,1.2373]
[1757068878647,0.001,4419.1,4418.4,1.58736479]
[1757068878648,0.1128,4418.7,4418.4,1.58736479]
[1757068878850,0.1128,4418.7,4418.4,0.66626479]
[1757068879013,0.1128,4418.7,4418.5,0.9211]
[1757068879643,0.1128,4418.7,4418.6,1.2373]
[1757068881208,0.1128,4418.7,4418.6,0.7892]
[1757068881733,0.1128,4418.7,4418.6,1.2373]
[1757068883546,0.68032225,4419.0,4418.6,1.58735435]
[1757068883861,0.001,4419.1,4418.8,2.26305784]
[1757068884059,0.001,4419.1,4419.0,2.26295541]
[1757068884353,0.001,4419.1,4419.0,2.57915541]
[1757068884558,0.001,4419.1,4419.0,4.07884984]
[1757068889448,0.001,4419.1,4419.0,1.81589443]
[1757068890336,0.001,4419.1,4419.0,1.36779443]
[1757068890539,0.001,4419.1,4419.0,1.2373]
[1757068893381,0.001,4419.1,4419.0,3.52288496]
[1757068895055,0.001,4419.1,4419.0,3.63568496]
[1757068896844,0.001,4419.1,4419.0,8.86252145]
[1757068897073,0.001,4419.1,4419.0,8.8398919]
[1757068897278,0.001,4419.1,4419.0,10.49688622]
[1757068898283,0.001,4419.1,4419.0,14.29688622]
[1757068898945,0.001,4419.1,4419.0,10.49688622]
[1757068899145,0.001,4419.1,4419.0,14.29688622]
[1757068900997,0.001,4419.1,4419.0,10.49688622]
[1757068901203,0.001,4419.1,4419.0,14.29688622]
[1757068902009,0.0002,4419.1,4419.0,4.82194973]
[1757068902183,0.0002,4419.1,4419.0,6.49095541]
[1757068902907,0.0002,4419.1,4419.0,7.41805541]
[1757068903472,0.0002,4419.1,4419.0,3.61905541]
[1757068903671,0.0002,4419.1,4419.0,7.44068496]
[1757068903885,0.0002,4419.1,4419.0,7.41805541]
[1757068904083,0.0002,4419.1,4419.0,8.55286608]
[1757068905408,0.5002,4419.1,4419.0,8.55286608]
[1757068907917,0.0002,4419.1,4419.0,8.35166608]
[1757068911219,0.0002,4419.1,4419.0,7.91546608]
[1757068912097,0.2876,4419.1,4419.0,3.81766608]
[1757068912316,0.2876,4419.1,4419.0,7.12576608]
[1757068912525,0.7194,4419.1,4419.0,7.12576608]
[1757068912722,0.0002,4419.1,4419.0,4.11646608]
[1757068912922,0.0002,4419.1,4419.0,7.12576608]
[1757068913614,0.7194,4419.1,4419.0,7.12476608]
[1757068914516,0.0002,4419.1,4419.0,7.12476608]
[1757068914717,0.0002,4419.1,4419.0,7.91446608]
[1757068917634,0.2876,4419.1,4419.0,3.32676608]
[1757068917939,0.0002,4419.1,4419.0,7.91446608]
[1757068919042,0.0002,4419.1,4419.0,7.91846608]
[1757068920243,0.0002,4419.1,4419.0,7.12876608]
[1757068920612,0.0002,4419.1,4419.0,7.42756608]
[1757068920937,0.0002,4419.1,4419.0,7.91846608]
[1757068921366,0.0002,4419.1,4419.0,7.61966608]
[1757068921735,0.0002,4419.1,4419.0,7.12876608]
[1757068922431,0.2876,4419.1,4419.0,7.12876608]
[1757068922636,0.0002,4419.1,4419.0,7.12876608]
[1757068924042,0.2876,4419.1,4419.0,7.12876608]
[1757068924244,0.7194,4419.1,4419.0,5.99395541]
[1757068924750,0.7194,4419.1,4419.0,2.19595541]
[1757068924941,0.7194,4419.1,4419.0,5.99395541]
[1757068925143,0.2876,4419.1,4419.0,11.2207919]
[1757068925347,0.7194,4419.1,4419.0,11.2207919]
[1757068925826,0.7194,4419.1,4419.0,5.88115541]
[1757068927746,0.2876,4419.1,4419.0,5.88115541]
[1757068928047,0.0002,4419.1,4419.0,7.22144608]
[1757068928236,0.0002,4419.1,4419.0,7.82514608]
[1757068928434,0.0002,4419.1,4419.0,13.05198257]
[1757068929847,0.09128557,4419.3,4419.2,2.262853]
[1757068930022,0.09128557,4419.3,4419.2,6.059853]
[1757068930746,0.09128557,4419.3,4419.2,9.10525656]
[1757068930925,0.0006,4419.3,4419.2,9.12435656]
[1757068931125,0.0006,4419.3,4419.2,8.33235656]
[1757068935847,0.0006,4419.3,4419.2,3.76435656]
[1757068936052,0.0006,4419.3,4419.2,7.56135656]
[1757068936053,0.3009,4419.3,4419.2,7.56135656]
[1757068939544,0.0006,4419.3,4419.2,8.33235656]
[1757068940167,0.0006,4419.3,4419.2,8.33135656]
[1757068940754,0.7648,4419.3,4419.2,7.56035656]
[1757068940936,0.0006,4419.3,4419.2,7.67315656]
[1757068941341,0.7648,4419.3,4419.2,7.67315656]
[1757068941877,0.3009,4419.3,4419.2,7.67315656]
[1757068942048,0.0006,4419.3,4419.2,8.44415656]
[1757068942643,0.7648,4419.3,4419.2,7.67315656]
[1757068942855,0.7648,4419.3,4419.2,6.171653]
[1757068943055,0.7648,4419.3,4419.2,2.375653]
[1757068943743,0.7648,4419.3,4419.2,6.171653]